fUST/lending_fUST_20250217
["ID","MTS","AMOUNT","RATE_DAILY","PERIOD"]
[353349098,1739789444890,-500.0,0.0001326,2]
[353349100,1739789444900,-500.0,0.0001326,2]
[353349102,1739789444909,-500.0,0.0001326,2]
[353349104,1739789444919,-500.0,0.0001326,2]
[353349105,1739789444932,-501.54478948,0.0001326,2]
[353349106,1739789444940,-500.0,0.0001326,2]
[353349107,1739789444951,-500.0,0.0001326,2]
[353349108,1739789444961,-500.0,0.0001326,2]
[353349109,1739789444971,-500.0,0.0001326,2]
[353349110,1739789444979,-500.0,0.0001326,2]
[353349111,1739789444988,-500.0,0.0001326,2]
[353349112,1739789444998,-500.0,0.0001326,2]
[353349113,1739789445008,-500.0,0.0001326,2]
[353349114,1739789445019,-500.0,0.0001326,2]
[353349115,1739789445027,-500.0,0.0001326,2]
[353349116,1739789445036,-500.0,0.0001326,2]
[353349117,1739789445045,-500.0,0.0001326,2]
[353349118,1739789445055,-500.0,0.0001326,2]
[353349119,1739789445064,-500.0,0.0001326,2]
[353349120,1739789445072,-500.0,0.0001326,2]
[353349121,1739789445081,-501.54839541,0.0001326,2]
[353349122,1739789445091,-500.0,0.0001326,2]
[353349123,1739789445099,-500.0,0.0001326,2]
[353349124,1739789445108,-475.28448833,0.0001326,2]
[353349125,1739789445117,-501.15694292,0.0001326,2]
[353349126,1739789445126,-503.09335581,0.0001326,2]
[353349128,1739789445135,-500.0,0.0001326,2]
[353349130,1739789445144,-501.07300111,0.0001326,2]
[353349132,1739789445153,-500.0,0.0001326,2]
[353349134,1739789445163,-500.0,0.0001326,2]
[353349136,1739789445172,-500.0,0.0001326,2]
[353349138,1739789445181,-502.40140887,0.0001326,2]
[353349140,1739789445191,-503.90051519,0.0001326,2]
[353349142,1739789445200,-500.0,0.0001326,2]
[353349144,1739789445209,-500.0,0.0001326,2]
[353349146,1739789445218,-500.0,0.0001326,2]
[353349148,1739789445227,-500.0,0.0001326,2]
[353349150,1739789445236,-506.81005314,0.0001326,2]
[353349152,1739789445246,-502.18510898,0.0001326,2]
[353349154,1739789445255,-500.0,0.0001326,2]
[353349156,1739789445265,-500.0,0.0001326,2]
[353349158,1739789445275,-500.0,0.0001326,2]
[353349160,1739789445285,-500.0,0.0001326,2]
[353349162,1739789445294,-500.0,0.0001326,2]
[353349164,1739789445303,-500.0,0.0001326,2]
[353349166,1739789445313,-501.28788491,0.0001326,2]
[353349168,1739789445322,-151.0,0.0001326,2]
[353349170,1739789445331,-500.0,0.0001326,2]
[353349172,1739789445340,-500.0,0.0001326,2]
[353349174,1739789445349,-500.0,0.0001326,2]
[353349176,1739789445359,-497.16113053,0.0001326,2]
[353349178,1739789445368,-500.0,0.0001326,2]
[353349180,1739789445377,-500.0,0.0001326,2]
[353349182,1739789445387,-500.0,0.0001326,2]
[353349184,1739789445396,-512.81885195,0.0001326,2]
[353349186,1739789445406,-500.0,0.0001326,2]
[353349188,1739789445415,-500.0,0.0001326,2]
[353349190,1739789445425,-500.0,0.0001326,2]
[353349192,1739789445435,-500.0,0.0001326,2]
[353349194,1739789445444,-572.83499134,0.0001326,2]
[353349196,1739789445453,-500.0,0.0001326,2]
[353349199,1739789445463,-500.0,0.0001326,2]
[353349201,1739789445472,-500.0,0.0001326,2]
[353349203,1739789445481,-500.6914804,0.0001326,2]
[353349205,1739789445491,-500.90103874,0.0001326,2]
[353349207,1739789445500,-500.0,0.0001326,2]
[353349209,1739789445509,-500.0,0.0001326,2]
[353349211,1739789445519,-502.95349315,0.0001326,2]
[353349213,1739789445528,-500.0,0.0001326,2]
[353349215,1739789445537,-501.15478708,0.0001326,2]
[353349217,1739789445546,-500.0,0.0001326,2]
[353349219,1739789445556,-500.0,0.0001326,2]
[353349221,1739789445565,-500.0,0.0001326,2]
[353349223,1739789445574,-502.2918879,0.0001326,2]
[353349225,1739789445584,-151.0,0.0001326,2]
[353349227,1739789445593,-500.0,0.0001326,2]
[353349229,1739789445602,-501.01526434,0.0001326,2]
[353349231,1739789445611,-500.0,0.0001326,2]
[353349233,1739789445621,-500.0,0.0001326,2]
[353349235,1739789445630,-500.0,0.0001326,2]
[353349237,1739789445639,-502.18158285,0.0001326,2]
[353349239,1739789445649,-380.88942374,0.0001326,2]
[353349241,1739789445658,-500.0,0.0001326,2]
[353349243,1739789445668,-525.71365384,0.0001326,2]
[353349245,1739789445679,-502.59063399,0.0001326,2]
[353349247,1739789445688,-500.0,0.0001326,2]
[353349249,1739789445698,-500.0,0.0001326,2]
[353349251,1739789445707,-508.84441242,0.0001326,2]
[353349253,1739789445716,-502.93702461,0.0001326,2]
[353349255,1739789445725,-501.43087206,0.0001326,2]
[353349257,1739789445734,-500.0,0.0001326,2]
[353349259,1739789445743,-502.19425131,0.0001326,2]
[353349261,1739789445753,-500.0,0.0001326,2]
[353349263,1739789445762,-500.0,0.0001326,2]
[353349265,1739789445771,-500.0,0.0001326,2]
[353349267,1739789445781,-500.0,0.0001326,2]
[353349269,1739789445791,-500.0,0.0001326,2]
[353349271,1739789445800,-500.0,0.0001326,2]
[353349273,1739789445809,-284.12821565,0.0001326,2]
[353349275,1739789445818,-502.05208065,0.0001326,2]
[353349277,1739789445827,-500.0,0.0001326,2]
[353349279,1739789445837,-303.22058333,0.0001326,2]
[353349281,1739789445847,-500.0,0.0001326,2]
[353349283,1739789445856,-500.0,0.0001326,2]
[353349285,1739789445866,-501.54869585,0.0001326,2]
[353349287,1739789445875,-500.0,0.0001326,2]
[353349289,1739789445884,-501.0114083,0.0001326,2]
[353349291,1739789445894,-500.0,0.0001326,2]
[353349293,1739789445903,-501.95508958,0.0001326,2]
[353349295,1739789445912,-500.0,0.0001326,2]
[353349297,1739789445922,-500.0,0.0001326,2]
[353349299,1739789445935,-151.0,0.0001326,2]
[353349301,1739789445944,-500.0,0.0001326,2]
[353349303,1739789445954,-151.0,0.0001326,2]
[353349305,1739789445963,-151.0,0.0001326,2]
[353349308,1739789445973,-500.0,0.0001326,2]
[353349312,1739789445983,-151.0,0.0001326,2]
[353349315,1739789445993,-151.0,0.0001326,2]
[353349319,1739789446004,-151.0,0.0001326,2]
[353349323,1739789446014,-500.0,0.0001326,2]
[353349326,1739789446024,-500.0,0.0001326,2]
[353349329,1739789446033,-151.0,0.0001326,2]
[353349331,1739789446042,-151.0,0.0001326,2]
[353349334,1739789446052,-151.0,0.0001326,2]
[353349337,1739789446062,-234.53704494,0.0001326,2]
[353349341,1739789446071,-500.0,0.0001326,2]
[353349343,1739789446081,-151.0,0.0001326,2]
[353349345,1739789446091,-151.0,0.0001326,2]
[353349347,1739789446100,-151.0,0.0001326,2]
[353349349,1739789446110,-500.0,0.0001326,2]
[353349351,1739789446119,-288.142135,0.0001326,2]
[353349353,1739789446128,-288.142135,0.0001326,2]
[353349356,1739789446137,-500.0,0.0001326,2]
[353349358,1739789446147,-288.142135,0.0001326,2]
[353349368,1739789446234,-474.65837893,0.0001326,2]
[353349370,1739789446245,-288.142135,0.0001326,2]
[353349372,1739789446255,-288.142135,0.0001326,2]
[353349374,1739789446265,-288.142135,0.0001326,2]
[353349376,1739789446274,-5497.99,0.0001326,2]
[353349378,1739789446283,-500.0,0.0001326,2]
[353349381,1739789446292,-500.67581943,0.0001326,5]
[353349383,1739789446302,-511.54,0.0001326,2]
[353349385,1739789446312,-500.0,0.0001326,2]
[353349387,1739789446321,-502.42176256,0.0001326,2]
[353349389,1739789446331,-500.0,0.0001326,2]
[353349391,1739789446340,-503.8892319,0.0001326,2]
[353349393,1739789446349,-170.80519076,0.0001326,2]
[353349395,1739789446359,-501.98577372,0.0001326,2]
[353349397,1739789446368,-151.0,0.0001326,2]
[353349399,1739789446377,-151.0,0.0001326,2]
[353349401,1739789446387,-500.0,0.0001326,2]
[353349403,1739789446396,-2003.726907,0.0001326,2]
[353349405,1739789446406,-2003.726907,0.0001326,2]
[353349407,1739789446420,-2003.726907,0.0001326,2]
[353349409,1739789446430,-2003.726907,0.0001326,2]
[353349411,1739789446440,-2003.726907,0.0001326,2]
[353349413,1739789446449,-2003.726907,0.0001326,2]
[353349415,1739789446458,-357.03131105,0.0001326,2]
[353349417,1739789446467,-500.0,0.0001326,2]
[353349419,1739789446477,-500.0,0.0001326,2]
[353349421,1739789446486,-500.0,0.0001326,2]
[353349423,1739789446496,-500.0,0.0001326,2]
[353349425,1739789446506,-500.0,0.0001326,2]
[353349427,1739789446515,-502.10352721,0.0001326,2]
[353349429,1739789446525,-142742.61279517,0.0001326,2]
[353349432,1739789446537,-500.0,0.00013266,2]
[353349434,1739789446547,-500.0,0.00013266,2]
[353349436,1739789446556,-500.0,0.00013266,2]
[353349438,1739789446565,-500.0,0.00013266,2]
[353349441,1739789446585,-244.15,0.00013266,2]
[353349443,1739789446596,-500.0,0.00013266,2]
[353349445,1739789446607,-664.13,0.00013266,2]
[353349448,1739789446617,-500.0,0.00013266,2]
[353349450,1739789446627,-639.45,0.00013266,2]
[353349452,1739789446637,-500.0,0.00013266,2]
[353349454,1739789446647,-2024.25,0.00013266,2]
[353349456,1739789446656,-1086.43,0.00013266,2]
[353349458,1739789446666,-18439.32,0.00013266,2]
[353349460,1739789446678,-907.03,0.00013266,2]
[353349462,1739789446688,-500.0,0.00013266,2]
[353349464,1739789446698,-1077.43,0.00013266,2]
[353349466,1739789446708,-8231.54,0.00013266,2]
[353349468,1739789446718,-634.59,0.00013266,2]
[353349471,1739789446730,-764.0,0.00013266,2]
[353349473,1739789446740,-500.0,0.00013266,2]
[353349475,1739789446750,-1168.82,0.00013266,2]
[353349477,1739789446761,-987.64,0.00013266,2]
[353349479,1739789446772,-500.0,0.00013266,2]
[353349481,1739789446782,-500.0,0.00013266,2]
[353349483,1739789446793,-500.0,0.00013266,2]
[353349485,1739789446803,-500.0,0.00013266,2]
[353349487,1739789446814,-500.0,0.00013266,2]
[353349489,1739789446824,-500.0,0.00013266,2]
[353349491,1739789446834,-890.2,0.00013266,2]
[353349494,1739789446844,-2196.56,0.00013266,2]
[353349496,1739789446855,-500.0,0.00013266,2]
[353349498,1739789446865,-413.43,0.00013266,2]
[353349500,1739789446876,-162.08141332,0.00013273,2]
[353349502,1739789446885,-505.08104598,0.00013273,2]
[353349504,1739789446895,-500.0,0.00013273,2]
[353349506,1739789446906,-500.0,0.00013273,2]
[353349508,1739789446916,-500.0,0.00013273,2]
[353349510,1739789446932,-500.0,0.00013273,2]
[353349511,1739789446942,-500.0,0.00013273,2]
[353349513,1739789446952,-4583.94950295,0.00013324,2]
[353349516,1739789446962,-500.0,0.00013342,2]
[353349518,1739789446974,-500.0,0.00013342,2]
[353349520,1739789446983,-500.0,0.00013342,2]
[353349522,1739789446993,-502.38982311,0.00013342,2]
[353349524,1739789447004,-500.0,0.00013342,2]
[353349526,1739789447014,-519.29492575,0.00013342,2]
[353349528,1739789447024,-502.51983982,0.00013342,2]
[353349530,1739789447034,-586.45984286,0.00013342,2]
[353349532,1739789447043,-500.0,0.00013342,2]
[353349534,1739789447052,-500.0,0.00013342,2]
[353349536,1739789447062,-411.84,0.00013342,2]
[353349538,1739789447072,-500.0,0.00013342,2]
[353349540,1739789447082,-500.0,0.00013342,2]
[353349542,1739789447092,-500.0,0.00013342,2]
[353349544,1739789447102,-500.0,0.00013342,2]
[353349546,1739789447112,-500.0,0.00013342,2]
[353349548,1739789447122,-500.0,0.00013342,2]
[353349550,1739789447132,-501.28290827,0.00013342,2]
[353349553,1739789447143,-340.28,0.00013342,2]
[353349555,1739789447152,-500.0,0.00013342,2]
[353349557,1739789447162,-500.0,0.00013342,2]
[353349559,1739789447174,-361.60495499,0.00013342,2]
[353349561,1739789447184,-500.0,0.00013342,2]
[353349563,1739789447194,-500.0,0.00013342,2]
[353349565,1739789447204,-366.6296609,0.00013342,2]
[353349567,1739789447215,-500.0,0.00013342,2]
[353349569,1739789447225,-500.0,0.00013342,2]
[353349571,1739789447235,-500.0,0.00013342,2]
[353349573,1739789447245,-500.0,0.00013342,2]
[353349575,1739789447254,-502.3460501,0.00013342,2]
[353349577,1739789447264,-500.0,0.00013342,2]
[353349579,1739789447274,-500.0,0.00013342,2]
[353349581,1739789447284,-500.0,0.00013342,2]
[353349582,1739789447294,-500.0,0.00013342,2]
[353349583,1739789447303,-501.4005451,0.00013342,2]
[353349584,1739789447313,-501.68344605,0.00013342,2]
[353349585,1739789447323,-500.0,0.00013342,2]
[353349586,1739789447332,-500.0,0.00013342,2]
[353349587,1739789447341,-502.25846472,0.00013342,2]
[353349588,1739789447351,-500.0,0.00013342,2]
[353349589,1739789447360,-500.0,0.00013342,2]
[353349590,1739789447369,-500.0,0.00013342,2]
[353349591,1739789447378,-500.0,0.00013342,2]
[353349592,1739789447388,-626.47486817,0.00013342,2]
[353349593,1739789447398,-555.91,0.00013342,2]
[353349594,1739789447409,-500.0,0.00013342,2]
[353349595,1739789447421,-523.13048672,0.00013342,2]
[353349596,1739789447433,-500.0,0.00013342,2]
[353349597,1739789447443,-500.0,0.00013342,2]
[353349598,1739789447453,-502.35489758,0.00013342,2]
[353349599,1739789447462,-501.91527297,0.00013342,2]
[353349600,1739789447472,-502.46238684,0.00013342,2]
[353349601,1739789447482,-500.0,0.00013342,2]
[353349602,1739789447491,-500.0,0.00013342,2]
[353349603,1739789447501,-500.0,0.00013342,2]
[353349604,1739789447511,-500.0,0.00013342,2]
[353349605,1739789447521,-500.0,0.00013342,2]
[353349606,1739789447531,-507.00335699,0.00013342,2]
[353349607,1739789447540,-498.39227632,0.00013342,2]
[353349608,1739789447550,-500.0,0.00013342,2]
[353349609,1739789447560,-500.0,0.00013342,2]
[353349610,1739789447569,-486.95820269,0.00013342,2]
[353349611,1739789447578,-500.0,0.00013342,2]
[353349612,1739789447588,-503.27838195,0.00013342,2]
[353349613,1739789447598,-500.0,0.00013342,2]
[353349614,1739789447607,-500.0,0.00013342,2]
[353349615,1739789447617,-500.0,0.00013342,2]
[353349616,1739789447627,-500.0,0.00013342,2]
[353349617,1739789447637,-500.0,0.00013342,2]
[353349618,1739789447647,-500.0,0.00013342,2]
[353349619,1739789447657,-501.43737311,0.00013342,2]
[353349621,1739789447667,-508.06195825,0.00013342,2]
[353349623,1739789447678,-500.0,0.00013342,2]
[353349625,1739789447688,-183.08469318,0.00013342,2]
[353349627,1739789447698,-500.0,0.00013342,2]
[353349629,1739789447709,-501.37028032,0.00013342,2]
[353349631,1739789447719,-502.37014656,0.00013342,2]
[353349633,1739789447729,-503.08563169,0.00013342,2]
[353349635,1739789447739,-500.0,0.00013342,2]
[353349637,1739789447749,-502.64067905,0.00013342,2]
[353349639,1739789447760,-571.4274102,0.00013342,2]
[353349641,1739789447770,-500.0,0.00013342,2]
[353349643,1739789447781,-502.39635643,0.00013342,2]
[353349645,1739789447793,-500.0,0.00013342,2]
[353349647,1739789447803,-500.0,0.00013342,2]
[353349649,1739789447813,-502.06124481,0.00013342,2]
[353349651,1739789447823,-500.0,0.00013342,2]
[353349653,1739789447833,-500.0,0.00013342,2]
[353349655,1739789447843,-500.0,0.00013342,2]
[353349656,1739789447853,-500.0,0.00013342,2]
[353349658,1739789447863,-503.63917832,0.00013342,2]
[353349660,1739789447873,-151.0,0.00013342,2]
[353349662,1739789447882,-500.0,0.00013342,2]
[353349663,1739789447893,-151.0,0.00013342,2]
[353349665,1739789447902,-500.0,0.00013342,2]
[353349667,1739789447912,-500.0,0.00013342,2]
[353349669,1739789447924,-151.0,0.00013342,2]
[353349670,1739789447938,-500.0,0.00013342,2]
[353349671,1739789447948,-151.0,0.00013342,2]
[353349673,1739789447959,-501.27651666,0.00013342,2]
[353349675,1739789447969,-500.0,0.00013342,2]
[353349677,1739789447980,-288.142135,0.00013342,2]
[353349679,1739789447990,-288.142135,0.00013342,2]
[353349681,1739789448000,-5497.99,0.00013342,2]
[353349683,1739789448010,-500.0,0.00013342,2]
[353349685,1739789448020,-511.54,0.00013342,2]
[353349687,1739789448030,-500.0,0.00013342,2]
[353349689,1739789448040,-200.8950748,0.00013342,2]
[353349691,1739789448050,-151.0,0.00013342,2]
[353349693,1739789448060,-500.0,0.00013342,2]
[353349695,1739789448070,-2003.726907,0.00013342,2]
[353349697,1739789448079,-2003.726907,0.00013342,2]
[353349699,1739789448089,-500.0,0.00013342,2]
[353349701,1739789448099,-568.6316286,0.00013342,2]
[353349703,1739789448108,-500.0,0.00013342,2]
[353349705,1739789448118,-500.0,0.00013342,2]
[353349707,1739789448128,-500.0,0.00013342,2]
[353349709,1739789448138,-500.0,0.00013348,2]
[353349711,1739789448148,-566.17,0.00013348,2]
[353349713,1739789448158,-500.0,0.00013348,2]
[353349715,1739789448168,-495.13,0.00013348,2]
[353349717,1739789448179,-400.49,0.00013348,2]
[353349719,1739789448191,-664.13,0.00013348,2]
[353349721,1739789448203,-500.0,0.00013348,2]
[353349723,1739789448214,-639.45,0.00013348,2]
[353349725,1739789448224,-515.31,0.00013348,2]
[353349727,1739789448234,-2024.25,0.00013348,2]
[353349729,1739789448244,-1086.43,0.00013348,2]
[353349731,1739789448255,-18439.32,0.00013348,2]
[353349733,1739789448265,-907.03,0.00013348,2]
[353349735,1739789448275,-500.0,0.00013348,2]
[353349737,1739789448285,-1077.43,0.00013348,2]
[353349739,1739789448296,-8231.54,0.00013348,2]
[353349741,1739789448306,-634.59,0.00013348,2]
[353349743,1739789448317,-764.0,0.00013348,2]
[353349745,1739789448327,-500.0,0.00013348,2]
[353349747,1739789448338,-1168.82,0.00013348,2]
[353349749,1739789448349,-987.64,0.00013348,2]
[353349752,1739789448360,-500.0,0.00013348,2]
[353349754,1739789448371,-500.0,0.00013348,2]
[353349756,1739789448381,-500.0,0.00013348,2]
[353349758,1739789448391,-500.0,0.00013348,2]
[353349760,1739789448402,-320.43280904,0.00013348,2]
[353349762,1739789448413,-500.0,0.00013348,2]
[353349764,1739789448424,-890.2,0.00013348,2]
[353349766,1739789448434,-2196.56,0.00013348,2]
[353349768,1739789448445,-500.0,0.00013348,2]
[353349770,1739789448455,-7438.69753278,0.00013391,2]
[353349772,1739789448465,-3000.0,0.000134,2]
[353349774,1739789448475,-38638.37539949,0.000134,2]
[353349776,1739789448486,-151.0,0.000134,2]
[353349778,1739789448497,-151.0,0.000134,2]
[353349780,1739789448507,-500.0,0.00013424,2]
[353349782,1739789448517,-191.99,0.00013424,2]
[353349784,1739789448527,-492.37,0.00013424,2]
[353349786,1739789448538,-500.0,0.00013424,2]
[353349788,1739789448548,-500.0,0.00013424,2]
[353349790,1739789448560,-522.51629953,0.00013424,2]
[353349792,1739789448571,-500.0,0.00013424,2]
[353349794,1739789448581,-500.0,0.00013424,2]
[353349796,1739789448592,-500.0,0.00013424,2]
[353349798,1739789448602,-500.0,0.00013424,2]
[353349800,1739789448612,-500.0,0.00013424,2]
[353349804,1739789448735,-500.0,0.00013424,2]
[353349805,1739789448747,-500.0,0.00013424,2]
[353349806,1739789448757,-500.0,0.00013424,2]
[353349807,1739789448767,-500.0,0.00013424,2]
[353349808,1739789448777,-505.43319536,0.00013424,2]
[353349809,1739789448787,-503.38368055,0.00013424,2]
[353349810,1739789448797,-500.0,0.00013424,2]
[353349811,1739789448807,-500.0,0.00013424,2]
[353349812,1739789448818,-534.16,0.00013424,2]
[353349813,1739789448829,-502.27547789,0.00013424,2]
[353349814,1739789448839,-511.99619282,0.00013424,2]
[353349815,1739789448848,-495.55,0.00013424,2]
[353349816,1739789448859,-501.64097503,0.00013424,2]
[353349817,1739789448870,-500.0,0.00013424,2]
[353349818,1739789448881,-500.0,0.00013424,2]
[353349819,1739789448891,-500.0,0.00013424,2]
[353349820,1739789448901,-502.21081919,0.00013424,2]
[353349822,1739789448911,-502.28397649,0.00013424,2]
[353349824,1739789448921,-500.0,0.00013424,2]
[353349826,1739789448936,-500.0,0.00013424,2]
[353349828,1739789448947,-500.0,0.00013424,2]
[353349830,1739789448958,-500.0,0.00013424,2]
[353349832,1739789448969,-579.16,0.00013424,2]
[353349834,1739789448980,-421.53622704,0.00013424,2]
[353349836,1739789448990,-500.0,0.00013424,2]
[353349838,1739789449001,-500.0,0.00013424,2]
[353349840,1739789449013,-645.18,0.00013424,2]
[353349842,1739789449023,-495.0,0.00013424,2]
[353349844,1739789449034,-500.0,0.00013424,2]
[353349846,1739789449043,-503.11243424,0.00013424,2]
[353349848,1739789449053,-502.43131329,0.00013424,2]
[353349850,1739789449064,-224.273313,0.00013424,2]
[353349852,1739789449073,-500.0,0.00013424,2]
[353349854,1739789449083,-151.0,0.00013424,2]
[353349856,1739789449092,-501.57901468,0.00013424,2]
[353349858,1739789449102,-500.0,0.00013424,2]
[353349860,1739789449111,-151.0,0.00013424,2]
[353349862,1739789449122,-500.98362518,0.00013424,2]
[353349864,1739789449132,-151.0,0.00013424,2]
[353349866,1739789449142,-500.0,0.00013424,2]
[353349868,1739789449152,-288.142135,0.00013424,2]
[353349870,1739789449163,-288.142135,0.00013424,2]
[353349872,1739789449174,-5497.99,0.00013424,2]
[353349874,1739789449184,-502.80699252,0.00013424,2]
[353349876,1739789449195,-511.54,0.00013424,2]
[353349878,1739789449205,-503.25407185,0.00013424,2]
[353349880,1739789449216,-501.62368495,0.00013424,2]
[353349882,1739789449227,-2003.726907,0.00013424,2]
[353349884,1739789449238,-2003.726907,0.00013424,2]
[353349886,1739789449248,-500.0,0.00013424,2]
[353349888,1739789449258,-500.0,0.00013424,2]
[353349890,1739789449269,-501.98469483,0.00013424,2]
[353349892,1739789449280,-500.0,0.00013424,2]
[353349894,1739789449291,-500.0,0.0001343,2]
[353349896,1739789449301,-500.0,0.0001343,2]
[353349898,1739789449312,-664.13,0.0001343,2]
[353349900,1739789449323,-500.0,0.0001343,2]
[353349902,1739789449334,-639.45,0.0001343,2]
[353349904,1739789449344,-2024.25,0.0001343,2]
[353349906,1739789449354,-1086.43,0.0001343,2]
[353349909,1739789449365,-18439.32,0.0001343,2]
[353349911,1739789449381,-907.03,0.0001343,2]
[353349913,1739789449391,-500.0,0.0001343,2]
[353349915,1739789449402,-1077.43,0.0001343,2]
[353349917,1739789449412,-8231.54,0.0001343,2]
[353349919,1739789449423,-634.59,0.0001343,2]
[353349921,1739789449434,-764.0,0.0001343,2]
[353349923,1739789449445,-500.0,0.0001343,2]
[353349925,1739789449456,-1168.82,0.0001343,2]
[353349927,1739789449468,-987.64,0.0001343,2]
[353349929,1739789449478,-500.0,0.0001343,2]
[353349931,1739789449488,-500.0,0.0001343,2]
[353349933,1739789449498,-500.0,0.0001343,2]
[353349935,1739789449508,-500.0,0.0001343,2]
[353349937,1739789449518,-500.0,0.0001343,2]
[353349939,1739789449529,-890.2,0.0001343,2]
[353349941,1739789449539,-2196.56,0.0001343,2]
[353349943,1739789449551,-500.0,0.0001343,2]
[353349945,1739789449562,-150.0,0.00013465,2]
[353349947,1739789449572,-171.77593022,0.00013465,2]
[353349949,1739789449583,-500.0,0.00013473,2]
[353349952,1739789449593,-450745.89995194,0.000135,2]
[353350021,1739789452384,-313955.14515414,0.000135,2]
[353350022,1739789452398,-311443.54708792,0.000135,2]
[353350023,1739789452407,-8973.12388128,0.000135,2]
[353350024,1739789452422,-16436.87611872,0.000135,2]
[353350025,1739789452431,-314.0,0.000135,2]
[353350026,1739789452440,-314.0,0.000135,2]
[353350027,1739789452449,-314.0,0.000135,2]
[353350028,1739789452458,-314.0,0.000135,2]
[353350029,1739789452467,-314.0,0.000135,2]
[353350030,1739789452476,-314.0,0.000135,2]
[353350031,1739789452486,-314.0,0.000135,2]
[353350032,1739789452495,-314.0,0.000135,2]
[353350033,1739789452504,-207.61723702,0.000135,2]
[353350034,1739789452515,-349.0,0.000135,2]
[353350035,1739789452525,-349.0,0.000135,2]
[353350036,1739789452536,-349.0,0.000135,2]
[353350037,1739789452546,-349.0,0.000135,2]
[353350038,1739789452555,-349.0,0.000135,2]
[353350039,1739789452565,-217.11643488,0.000135,2]
[353350040,1739789452574,-151.0,0.000135,2]
[353350041,1739789452583,-151.0,0.000135,2]
[353350042,1739789452592,-314.0,0.000135,2]
[353350043,1739789452602,-314.0,0.000135,2]
[353350044,1739789452612,-314.0,0.000135,2]
[353350045,1739789452621,-314.0,0.000135,2]
[353350046,1739789452630,-314.0,0.000135,2]
[353350047,1739789452640,-203.774278,0.000135,2]
[353350048,1739789452650,-151.0,0.000135,2]
[353350049,1739789452659,-151.0,0.000135,2]
[353350050,1739789452668,-200.714001,0.000135,2]
[353350051,1739789452678,-151.0,0.000135,2]
[353350052,1739789452688,-154.190098,0.000135,2]
[353350053,1739789452698,-288.142135,0.000135,2]
[353350054,1739789452707,-288.142135,0.000135,2]
[353350055,1739789452717,-2003.726907,0.000135,2]
[353350056,1739789452727,-2003.726907,0.000135,2]
[353350057,1739789452736,-294.28,0.00013506,2]
[353350058,1739789452746,-500.0,0.00013506,2]
[353350059,1739789452755,-500.0,0.00013506,2]
[353350060,1739789452764,-500.0,0.00013506,2]
[353350061,1739789452774,-503.42217947,0.00013506,2]
[353350062,1739789452783,-500.0,0.00013506,2]
[353350063,1739789452793,-502.58204108,0.00013506,2]
[353350064,1739789452803,-500.0,0.00013506,2]
[353350065,1739789452812,-437.581968,0.00013506,2]
[353350066,1739789452822,-500.0,0.00013506,2]
[353350067,1739789452831,-500.0,0.00013506,2]
[353350068,1739789452840,-500.0,0.00013506,2]
[353350069,1739789452850,-580.13981906,0.00013506,2]
[353350070,1739789452859,-503.43947758,0.00013506,2]